fUSD/lending_fUSD_20260115
["ID","MTS","AMOUNT","RATE_DAILY","PERIOD"]
[402068187,1768504259053,-519.85,0.0003589,10]
[402068188,1768504259064,-500.0,0.0003589,10]
[402068189,1768504259074,-609.16,0.0003589,10]
[402068190,1768504259085,-500.0,0.0003589,10]
[402068191,1768504259097,-500.0,0.0003589,10]
[402068192,1768504259110,-771.88,0.0003589,10]
[402068193,1768504259121,-687.46,0.0003589,10]
[402068194,1768504259132,-500.0,0.0003589,10]
[402068195,1768504259143,-580.1,0.0003589,10]
[402068196,1768504259154,-500.0,0.0003589,10]
[402068197,1768504259165,-607.98,0.0003589,10]
[402068198,1768504259176,-982.61,0.0003589,10]
[402068199,1768504259188,-568.59,0.0003589,10]
[402068200,1768504259199,-783.17,0.0003589,10]
[402068201,1768504259210,-897.49,0.0003589,10]
[402068202,1768504259220,-500.0,0.0003589,10]
[402068203,1768504259231,-500.0,0.0003589,10]
[402068204,1768504259242,-500.0,0.0003589,10]
[402068205,1768504259252,-500.0,0.0003589,10]
[402068206,1768504259262,-500.0,0.0003589,10]
[402068207,1768504259272,-500.0,0.0003589,10]
[402068208,1768504259283,-346.84212224,0.0003589,10]
[402068209,1768504259293,-500.0,0.0003589,10]
[402068210,1768504259304,-590.68,0.0003589,10]
[402068211,1768504259314,-500.0,0.0003589,10]
[402068212,1768504259325,-500.0,0.0003589,10]
[402068213,1768504259337,-500.0,0.0003589,10]
[402068214,1768504259348,-500.0,0.0003589,10]
[402068215,1768504259359,-500.0,0.0003589,10]
[402068216,1768504259371,-500.0,0.0003589,10]
[402068217,1768504259392,-500.0,0.0003589,10]
[402068218,1768504259412,-500.0,0.0003589,10]
[402068219,1768504259426,-569.42,0.0003589,10]
[402068220,1768504259439,-524.79,0.0003589,10]
[402068221,1768504259449,-500.0,0.0003589,10]
[402068222,1768504259461,-500.0,0.0003589,10]
[402068223,1768504259472,-529.3,0.0003589,10]
[402068224,1768504259482,-500.0,0.0003589,10]
[402068225,1768504259493,-500.0,0.0003589,10]
[402068226,1768504259504,-500.0,0.0003589,10]
[402068227,1768504259514,-511.38,0.0003589,2]
[402068228,1768504259525,-500.0,0.0003589,10]
[402068229,1768504259536,-834.92,0.0003589,10]
[402068230,1768504259546,-500.0,0.0003589,10]
[402068231,1768504259558,-200.0,0.0003589,120]
[402068232,1768504259572,-772.27,0.0003589,10]
[402068233,1768504259583,-1054.65,0.0003589,10]
[402068234,1768504259594,-260.69799495,0.0003589,10]
[402068235,1768504259605,-500.0,0.0003589,10]
[402068236,1768504259615,-500.0,0.0003589,10]
[402068237,1768504259627,-500.0,0.0003589,10]
[402068238,1768504259638,-564.0,0.0003589,10]
[402068239,1768504259651,-500.0,0.0003589,10]
[402068240,1768504259662,-500.0,0.0003589,10]
[402068241,1768504259674,-500.0,0.0003589,10]
[402068242,1768504259686,-500.0,0.0003589,10]
[402068243,1768504259697,-776.85,0.0003589,10]
[402068244,1768504259708,-714.3,0.0003589,10]
[402068245,1768504259718,-1165.22,0.0003589,10]
[402068246,1768504259728,-500.0,0.0003589,10]
[402068247,1768504259739,-217.75608002,0.0003589,10]
[402068248,1768504259750,-500.0,0.0003589,10]
[402068249,1768504259761,-507.4,0.0003589,10]
[402068250,1768504259772,-500.0,0.0003589,10]
[402068251,1768504259782,-500.0,0.0003589,10]
[402068252,1768504259794,-576.87,0.0003589,10]
[402068253,1768504259805,-500.0,0.0003589,10]
[402068254,1768504259815,-500.0,0.0003589,10]
[402068255,1768504259827,-500.0,0.0003589,10]
[402068256,1768504259837,-500.0,0.0003589,10]
[402068257,1768504259847,-500.0,0.0003589,10]
[402068258,1768504259857,-500.0,0.0003589,10]
[402068259,1768504259867,-739.35,0.0003589,10]
[402068260,1768504259878,-500.0,0.0003589,10]
[402068261,1768504259888,-500.0,0.0003589,10]
[402068262,1768504259899,-500.0,0.0003589,10]
[402068263,1768504259910,-500.0,0.0003589,10]
[402068264,1768504259920,-1101.42,0.0003589,10]
[402068265,1768504259931,-643.26,0.0003589,10]
[402068266,1768504259942,-500.0,0.0003589,10]
[402068267,1768504259952,-500.0,0.0003589,10]
[402068268,1768504259962,-908.35,0.0003589,10]
[402068269,1768504259975,-500.0,0.0003589,10]
[402068270,1768504259987,-785.24,0.0003589,10]
[402068271,1768504259998,-500.0,0.0003589,10]
[402068272,1768504260011,-760.23,0.0003589,10]
[402068273,1768504260022,-500.0,0.0003589,10]
[402068274,1768504260032,-570.14,0.0003589,10]
[402068275,1768504260043,-500.0,0.0003589,10]
[402068276,1768504260054,-500.0,0.0003589,10]
[402068277,1768504260065,-682.14,0.0003589,10]
[402068278,1768504260077,-500.0,0.0003589,10]
[402068279,1768504260088,-1016.41,0.0003589,10]
[402068280,1768504260101,-500.0,0.0003589,10]
[402068281,1768504260235,-561.74,0.0003589,10]
[402068282,1768504260245,-500.0,0.0003589,10]
[402068283,1768504260257,-500.0,0.0003589,10]
[402068284,1768504260267,-629.3,0.0003589,10]
[402068285,1768504260286,-500.0,0.0003589,10]
[402068286,1768504260298,-156.652895,0.0003589,10]
[402068287,1768504260310,-665.97,0.0003589,10]
[402068288,1768504260320,-239.185561,0.0003589,10]
[402068289,1768504260332,-500.0,0.0003589,10]
[402068290,1768504260342,-739.87,0.0003589,10]
[402068291,1768504260354,-712.32,0.0003589,10]
[402068292,1768504260364,-678.86,0.0003589,10]
[402068293,1768504260376,-691.95,0.0003589,10]
[402068294,1768504260387,-603.88,0.0003589,10]
[402068295,1768504260398,-500.0,0.0003589,10]
[402068296,1768504260409,-632.05858321,0.0003589,10]
[402068297,1768504260420,-1140.34,0.0003589,10]
[402068298,1768504260432,-500.0,0.0003589,10]
[402068299,1768504260444,-500.0,0.0003589,10]
[402068300,1768504260456,-868.52,0.0003589,10]
[402068301,1768504260467,-656.17,0.0003589,10]
[402068302,1768504260477,-500.0,0.0003589,10]
[402068303,1768504260487,-500.0,0.0003589,10]
[402068304,1768504260498,-500.0,0.0003589,10]
[402068305,1768504260508,-500.0,0.0003589,10]
[402068306,1768504260519,-500.0,0.0003589,10]
[402068307,1768504260530,-500.0,0.0003589,10]
[402068308,1768504260541,-884.3,0.0003589,10]
[402068309,1768504260552,-648.64,0.0003589,10]
[402068310,1768504260563,-500.0,0.0003589,10]
[402068311,1768504260574,-500.0,0.0003589,10]
[402068312,1768504260585,-500.0,0.0003589,10]
[402068313,1768504260595,-714.27,0.0003589,10]
[402068314,1768504260606,-682.66,0.0003589,10]
[402068315,1768504260616,-500.0,0.0003589,10]
[402068316,1768504260626,-511.92,0.0003589,10]
[402068317,1768504260636,-500.0,0.0003589,10]
[402068318,1768504260646,-572.3,0.0003589,10]
[402068319,1768504260656,-702.67,0.0003589,10]
[402068320,1768504260667,-500.0,0.0003589,10]
[402068321,1768504260677,-500.0,0.0003589,10]
[402068322,1768504260687,-548.82,0.0003589,10]
[402068323,1768504260698,-500.0,0.0003589,10]
[402068324,1768504260708,-500.0,0.0003589,10]
[402068325,1768504260718,-597.19,0.0003589,10]
[402068326,1768504260728,-884.63,0.0003589,10]
[402068327,1768504260739,-671.54,0.0003589,10]
[402068328,1768504260750,-500.0,0.0003589,10]
[402068329,1768504260762,-506.43,0.0003589,10]
[402068330,1768504260773,-500.0,0.0003589,10]
[402068331,1768504260784,-500.0,0.0003589,10]
[402068332,1768504260794,-500.0,0.0003589,10]
[402068333,1768504260805,-500.0,0.0003589,10]
[402068334,1768504260815,-538.4,0.0003589,10]
[402068335,1768504260826,-160.040885,0.0003589,10]
[402068336,1768504260837,-500.0,0.0003589,10]
[402068337,1768504260847,-673.07,0.0003589,10]
[402068338,1768504260857,-716.05,0.0003589,10]
[402068339,1768504260868,-500.0,0.0003589,10]
[402068340,1768504260878,-846.61,0.0003589,10]
[402068341,1768504260889,-986.03,0.0003589,10]
[402068342,1768504260901,-500.0,0.0003589,10]
[402068343,1768504260914,-500.0,0.0003589,10]
[402068344,1768504260925,-577.20272089,0.0003589,10]
[402068345,1768504260935,-766.24,0.0003589,10]
[402068346,1768504260947,-835.61,0.0003589,10]
[402068347,1768504260958,-525.01,0.0003589,10]
[402068348,1768504260971,-500.0,0.0003589,10]
[402068349,1768504260982,-500.0,0.0003589,10]
[402068350,1768504260994,-723.04,0.0003589,10]
[402068351,1768504261007,-500.0,0.0003589,10]
[402068352,1768504261018,-666.81,0.0003589,10]
[402068353,1768504261030,-500.0,0.0003589,10]
[402068354,1768504261041,-500.0,0.0003589,10]
[402068355,1768504261052,-500.0,0.0003589,10]
[402068356,1768504261063,-500.0,0.0003589,10]
[402068357,1768504261074,-500.0,0.0003589,10]
[402068358,1768504261084,-500.0,0.0003589,10]
[402068359,1768504261095,-500.0,0.0003589,10]
[402068360,1768504261109,-1004.46,0.0003589,10]
[402068361,1768504261120,-797.6,0.0003589,10]
[402068362,1768504261131,-500.0,0.0003589,10]
[402068363,1768504261143,-500.0,0.0003589,10]
[402068364,1768504261153,-500.0,0.0003589,10]
[402068365,1768504261163,-500.0,0.0003589,10]
[402068366,1768504261174,-535.85,0.0003589,10]
[402068367,1768504261184,-500.0,0.0003589,10]
[402068368,1768504261196,-500.0,0.0003589,10]
[402068369,1768504261207,-500.0,0.0003589,10]
[402068370,1768504261217,-500.0,0.0003589,10]
[402068371,1768504261228,-759.47,0.0003589,10]
[402068372,1768504261238,-500.0,0.0003589,10]
[402068373,1768504261249,-500.0,0.0003589,10]
[402068374,1768504261260,-875.47,0.0003589,10]
[402068375,1768504261271,-500.0,0.0003589,10]
[402068376,1768504261282,-500.0,0.0003589,10]
[402068377,1768504261292,-500.0,0.0003589,10]
[402068378,1768504261303,-500.0,0.0003589,10]
[402068379,1768504261314,-500.0,0.0003589,10]
[402068380,1768504261324,-500.0,0.0003589,10]
[402068381,1768504261335,-500.0,0.0003589,10]
[402068382,1768504261347,-687.76,0.0003589,10]
[402068383,1768504261357,-500.0,0.0003589,10]
[402068384,1768504261368,-532.97,0.0003589,10]
[402068385,1768504261380,-500.0,0.0003589,10]
[402068386,1768504261391,-500.0,0.0003589,10]
[402068387,1768504261405,-834.97,0.0003589,10]
[402068388,1768504261417,-323.68694555,0.0003589,10]
[402068389,1768504261428,-500.0,0.0003589,10]
[402068390,1768504261443,-500.0,0.0003589,10]
[402068391,1768504261454,-500.0,0.0003589,10]
[402068392,1768504261465,-500.0,0.0003589,10]
[402068393,1768504261476,-713.64,0.0003589,14]
[402068394,1768504261487,-500.0,0.0003589,10]
[402068395,1768504261498,-500.0,0.0003589,10]
[402068396,1768504261509,-500.0,0.0003589,10]
[402068397,1768504261520,-500.0,0.0003589,10]
[402068398,1768504261531,-500.0,0.0003589,10]
[402068399,1768504261542,-151.0,0.0003589,31]
[402068400,1768504261553,-500.0,0.0003589,10]
[402068401,1768504261563,-264.280108,0.0003589,31]
[402068402,1768504261574,-500.0,0.0003589,10]
[402068403,1768504261585,-500.0,0.0003589,10]
[402068404,1768504261596,-500.0,0.0003589,10]
[402068405,1768504261607,-500.0,0.0003589,10]
[402068406,1768504261617,-500.0,0.0003589,10]
[402068407,1768504261629,-265.34550683,0.0003589,10]
[402068408,1768504261640,-500.0,0.0003589,10]
[402068409,1768504261650,-758.75,0.0003589,10]
[402068410,1768504261662,-500.0,0.0003589,10]
[402068411,1768504261674,-782.76,0.0003589,10]
[402068412,1768504261685,-500.0,0.0003589,10]
[402068413,1768504261699,-500.0,0.0003589,10]
[402068414,1768504261711,-500.0,0.0003589,10]
[402068415,1768504261722,-500.0,0.0003589,10]
[402068416,1768504261733,-500.0,0.0003589,10]
[402068417,1768504261744,-500.0,0.0003589,10]
[402068418,1768504261755,-500.0,0.0003589,10]
[402068419,1768504261765,-500.0,0.0003589,10]
[402068420,1768504261776,-628.25,0.0003589,10]
[402068421,1768504261787,-500.0,0.0003589,10]
[402068422,1768504261797,-500.0,0.0003589,10]
[402068423,1768504261807,-719.06,0.0003589,10]
[402068424,1768504261818,-500.0,0.0003589,10]
[402068425,1768504261829,-500.0,0.0003589,10]
[402068426,1768504261839,-500.0,0.0003589,10]
[402068427,1768504261851,-1204.83,0.0003589,10]
[402068428,1768504261862,-525.87,0.0003589,10]
[402068429,1768504261873,-500.0,0.0003589,10]
[402068430,1768504261884,-500.0,0.0003589,10]
[402068431,1768504261895,-500.0,0.0003589,10]
[402068432,1768504261907,-500.0,0.0003589,10]
[402068433,1768504261918,-526.41,0.0003589,10]
[402068434,1768504261929,-500.0,0.0003589,10]
[402068435,1768504261944,-500.0,0.0003589,10]
[402068436,1768504261956,-500.0,0.0003589,10]
[402068437,1768504261969,-577.93,0.0003589,10]
[402068438,1768504261981,-151.0,0.0003589,31]
[402068439,1768504261992,-500.0,0.0003589,10]
[402068440,1768504262006,-151.0,0.0003589,31]
[402068441,1768504262018,-500.0,0.0003589,10]
[402068442,1768504262031,-738.49,0.0003589,10]
[402068443,1768504262042,-500.0,0.0003589,10]
[402068444,1768504262053,-1338.59,0.0003589,10]
[402068445,1768504262065,-500.0,0.0003589,10]
[402068446,1768504262076,-500.0,0.0003589,10]
[402068447,1768504262087,-500.0,0.0003589,10]
[402068448,1768504262100,-500.0,0.0003589,10]
[402068449,1768504262111,-636.84,0.0003589,10]
[402068450,1768504262121,-500.0,0.0003589,10]
[402068451,1768504262133,-500.0,0.0003589,10]
[402068452,1768504262144,-500.0,0.0003589,10]
[402068453,1768504262155,-500.0,0.0003589,10]
[402068454,1768504262167,-500.0,0.0003589,10]
[402068455,1768504262180,-500.0,0.0003589,10]
[402068456,1768504262192,-500.0,0.0003589,10]
[402068457,1768504262204,-1074.46,0.0003589,10]
[402068458,1768504262216,-500.0,0.0003589,10]
[402068459,1768504262228,-500.0,0.0003589,10]
[402068460,1768504262239,-500.0,0.0003589,10]
[402068461,1768504262253,-500.0,0.0003589,10]
[402068462,1768504262267,-500.0,0.0003589,10]
[402068463,1768504262279,-594.74,0.0003589,10]
[402068464,1768504262291,-500.0,0.0003589,10]
[402068465,1768504262304,-500.0,0.0003589,10]
[402068466,1768504262316,-581.10517041,0.0003589,10]
[402068467,1768504262330,-500.0,0.0003589,10]
[402068468,1768504262342,-2885.22,0.0003589,10]
[402068469,1768504262354,-500.0,0.0003589,10]
[402068470,1768504262365,-3413.68,0.0003589,10]
[402068471,1768504262377,-500.0,0.0003589,10]
[402068472,1768504262390,-500.0,0.0003589,10]
[402068473,1768504262402,-540.35,0.0003589,10]
[402068474,1768504262413,-500.0,0.0003589,10]
[402068475,1768504262424,-500.0,0.0003589,10]
[402068476,1768504262435,-9495.76,0.0003589,10]
[402068477,1768504262448,-500.0,0.0003589,10]
[402068478,1768504262460,-500.0,0.0003589,120]
[402068479,1768504262473,-693.67,0.0003589,10]
[402068480,1768504262485,-500.0,0.0003589,10]
[402068481,1768504262499,-500.0,0.0003589,10]
[402068482,1768504262512,-581.65,0.0003589,10]
[402068483,1768504262523,-500.0,0.0003589,10]
[402068484,1768504262533,-500.0,0.0003589,10]
[402068485,1768504262543,-500.0,0.0003589,10]
[402068486,1768504262554,-500.0,0.0003589,10]
[402068487,1768504262564,-500.0,0.0003589,10]
[402068488,1768504262575,-500.0,0.0003589,10]
[402068489,1768504262586,-560.98,0.0003589,10]
[402068490,1768504262597,-219.85479498,0.0003589,10]
[402068491,1768504262607,-502.57,0.0003589,10]
[402068492,1768504262619,-517.34,0.0003589,10]
[402068493,1768504262629,-803.57,0.0003589,10]
[402068494,1768504262641,-896.41,0.0003589,10]
[402068495,1768504262653,-651.76,0.0003589,10]
[402068496,1768504262665,-529.2,0.0003589,10]
[402068497,1768504262677,-500.0,0.0003589,10]
[402068498,1768504262689,-500.0,0.0003589,10]
[402068499,1768504262700,-500.0,0.0003589,10]
[402068500,1768504262711,-151.0,0.0003589,31]
[402068501,1768504262723,-500.0,0.0003589,10]
[402068502,1768504262736,-500.0,0.0003589,10]
[402068503,1768504262748,-2155.42,0.0003589,10]
[402068504,1768504262761,-1449.15,0.0003589,10]
[402068505,1768504262771,-500.0,0.0003589,10]
[402068506,1768504262782,-500.0,0.0003589,10]
[402068507,1768504262792,-500.0,0.0003589,10]
[402068508,1768504262803,-500.0,0.0003589,10]
[402068509,1768504262814,-666.29,0.0003589,10]
[402068510,1768504262826,-500.0,0.0003589,10]
[402068511,1768504262837,-500.0,0.0003589,10]
[402068512,1768504263153,-881.05,0.0003589,10]
[402068513,1768504263164,-500.0,0.0003589,10]
[402068514,1768504263175,-500.0,0.0003589,10]
[402068515,1768504263186,-500.0,0.0003589,10]
[402068516,1768504263198,-625.04,0.0003589,10]
[402068517,1768504263208,-500.0,0.0003589,10]
[402068518,1768504263219,-500.0,0.0003589,10]
[402068519,1768504263230,-500.0,0.0003589,10]
[402068520,1768504263240,-500.0,0.0003589,10]
[402068521,1768504263251,-949.36,0.0003589,10]
[402068522,1768504263262,-711.36,0.0003589,10]
[402068523,1768504263273,-628.28,0.0003589,10]
[402068524,1768504263283,-500.0,0.0003589,10]
[402068525,1768504263294,-500.0,0.0003589,10]
[402068526,1768504263308,-646.69140139,0.0003589,10]
[402068527,1768504263319,-500.0,0.0003589,10]
[402068528,1768504263330,-965.51,0.0003589,10]
[402068529,1768504263342,-500.0,0.0003589,10]
[402068530,1768504263353,-944.51,0.0003589,10]
[402068531,1768504263365,-500.0,0.0003589,10]
[402068532,1768504263375,-500.0,0.0003589,10]
[402068533,1768504263388,-500.0,0.0003589,10]
[402068534,1768504263398,-500.0,0.0003589,10]
[402068535,1768504263410,-500.0,0.0003589,10]
[402068536,1768504263423,-530.63,0.0003589,10]
[402068537,1768504263433,-500.0,0.0003589,10]
[402068538,1768504263444,-500.0,0.0003589,10]
[402068539,1768504263454,-836.81,0.0003589,10]
[402068540,1768504263465,-500.0,0.0003589,10]
[402068541,1768504263476,-742.27,0.0003589,10]
[402068542,1768504263486,-500.0,0.0003589,10]
[402068543,1768504263497,-500.0,0.0003589,10]
[402068544,1768504263508,-500.0,0.0003589,10]
[402068545,1768504263518,-500.0,0.0003589,10]
[402068546,1768504263529,-803.21,0.0003589,10]
[402068547,1768504263540,-909.72,0.0003589,10]
[402068548,1768504263551,-500.0,0.0003589,10]
[402068549,1768504263560,-1111.93,0.0003589,10]
[402068550,1768504263571,-633.24,0.0003589,10]
[402068551,1768504263581,-500.0,0.0003589,10]
[402068552,1768504263592,-502.53,0.0003589,10]
[402068553,1768504263603,-500.0,0.0003589,10]
[402068554,1768504263613,-344.46991761,0.0003589,10]
[402068555,1768504263626,-596.56,0.0003589,10]
[402068556,1768504263636,-1425.29,0.0003589,10]
[402068557,1768504263648,-850.1,0.0003589,10]
[402068558,1768504263658,-500.0,0.0003589,10]
[402068559,1768504263668,-500.0,0.0003589,10]
[402068560,1768504263679,-682.27,0.0003589,10]
[402068561,1768504263689,-571.9,0.0003589,10]
[402068562,1768504263700,-514.18,0.0003589,10]
[402068563,1768504263710,-892.88,0.0003589,10]
[402068564,1768504263721,-2082.12,0.0003589,10]
[402068565,1768504263732,-500.0,0.0003589,10]
[402068566,1768504263742,-3132.39,0.0003589,10]
[402068567,1768504263753,-151.0,0.0003589,31]
[402068568,1768504263764,-692.94,0.0003589,10]
[402068569,1768504263775,-500.0,0.0003589,10]
[402068570,1768504263787,-500.0,0.0003589,10]
[402068571,1768504263798,-532.93,0.0003589,10]
[402068572,1768504263809,-500.0,0.0003589,10]
[402068573,1768504263820,-500.0,0.0003589,10]
[402068574,1768504263832,-500.0,0.0003589,10]
[402068575,1768504263842,-500.0,0.0003589,10]
[402068576,1768504263853,-1136.92,0.0003589,10]
[402068577,1768504263864,-500.0,0.0003589,10]
[402068578,1768504263875,-500.0,0.0003589,10]
[402068579,1768504263887,-500.0,0.0003589,10]
[402068580,1768504263898,-500.0,0.0003589,10]
[402068581,1768504263910,-240.73674893,0.0003589,10]
[402068582,1768504263923,-500.0,0.0003589,10]
[402068583,1768504263935,-483.35136877,0.0003589,10]
[402068584,1768504263947,-500.0,0.0003589,10]
[402068585,1768504263960,-500.0,0.0003589,10]
[402068586,1768504263971,-603.81,0.0003589,10]
[402068587,1768504263981,-500.0,0.0003589,10]
[402068588,1768504263993,-778.13,0.0003589,10]
[402068589,1768504264004,-500.0,0.0003589,10]
[402068590,1768504264015,-500.0,0.0003589,10]
[402068591,1768504264027,-500.0,0.0003589,10]
[402068592,1768504264039,-500.0,0.0003589,10]
[402068593,1768504264051,-500.0,0.0003589,10]
[402068594,1768504264061,-500.0,0.0003589,10]
[402068595,1768504264073,-817.65,0.0003589,10]
[402068596,1768504264084,-500.0,0.0003589,10]
[402068597,1768504264095,-538.14,0.0003589,10]
[402068598,1768504264110,-500.0,0.0003589,10]
[402068599,1768504264122,-500.0,0.0003589,10]
[402068600,1768504264134,-500.0,0.0003589,10]
[402068601,1768504264146,-1095.93,0.0003589,10]
[402068602,1768504264157,-613.39,0.0003589,10]
[402068603,1768504264167,-684.46,0.0003589,10]
[402068604,1768504264179,-652.1,0.0003589,10]
[402068605,1768504264191,-500.0,0.0003589,10]
[402068606,1768504264201,-803.15,0.0003589,10]
[402068607,1768504264212,-500.0,0.0003589,10]
[402068608,1768504264223,-1894.16,0.0003589,10]
[402068609,1768504264234,-1064.54,0.0003589,10]
[402068610,1768504264246,-1206.56,0.0003589,10]
[402068611,1768504264257,-500.0,0.0003589,10]
[402068612,1768504264268,-500.0,0.0003589,10]
[402068613,1768504264279,-500.0,0.0003589,10]
[402068614,1768504264290,-3299.68,0.0003589,10]
[402068615,1768504264301,-569.77,0.0003589,10]
[402068616,1768504264313,-500.0,0.0003589,10]
[402068617,1768504264323,-500.0,0.0003589,10]
[402068618,1768504264334,-592.92,0.0003589,10]
[402068619,1768504264345,-1815.78,0.0003589,10]
[402068620,1768504264356,-519.56,0.0003589,10]
[402068621,1768504264367,-500.0,0.0003589,10]
[402068622,1768504264378,-500.0,0.0003589,10]
[402068623,1768504264389,-597.8251688,0.0003589,10]
[402068624,1768504264401,-802.86,0.0003589,10]
[402068625,1768504264412,-500.0,0.0003589,10]
[402068626,1768504264427,-574.56,0.0003589,10]
[402068627,1768504264438,-500.0,0.0003589,10]
[402068628,1768504264449,-500.0,0.0003589,10]
[402068629,1768504264460,-343.772167,0.0003589,7]
[402068630,1768504264472,-1009.98,0.0003589,10]
[402068631,1768504264486,-600.78,0.0003589,10]
[402068632,1768504264497,-343.772167,0.0003589,7]
[402068633,1768504264508,-1196.57,0.0003589,10]
[402068634,1768504264519,-343.772167,0.0003589,7]
[402068635,1768504264531,-500.0,0.0003589,10]
[402068636,1768504264541,-1692.22,0.0003589,10]
[402068637,1768504264553,-343.772167,0.0003589,7]
[402068638,1768504264565,-500.0,0.0003589,10]
[402068639,1768504264577,-500.0,0.0003589,10]
[402068640,1768504264588,-591.36,0.0003589,10]
[402068641,1768504264599,-823.12,0.0003589,10]
[402068642,1768504264609,-718.91,0.0003589,10]
[402068643,1768504264620,-941.2,0.0003589,10]
[402068644,1768504264630,-151.0,0.0003589,31]
[402068645,1768504264641,-500.0,0.0003589,10]
[402068646,1768504264651,-500.0,0.0003589,10]
[402068647,1768504264662,-206.836097,0.0003589,31]
[402068648,1768504264672,-752.25,0.0003589,10]
[402068649,1768504264683,-1127.53,0.0003589,10]
[402068650,1768504264694,-500.0,0.0003589,10]
[402068651,1768504264704,-511.74,0.0003589,10]
[402068652,1768504264715,-500.0,0.0003589,10]
[402068653,1768504264726,-881.65,0.0003589,10]
[402068654,1768504264739,-500.0,0.0003589,10]
[402068655,1768504264750,-500.0,0.0003589,10]
[402068656,1768504264763,-500.0,0.0003589,10]
[402068657,1768504264773,-434.94142596,0.0003589,10]
[402068658,1768504264784,-500.0,0.0003589,10]
[402068659,1768504264796,-1140.78,0.0003589,10]
[402068660,1768504264806,-676.39,0.0003589,10]
[402068661,1768504264817,-844.33,0.0003589,10]
[402068662,1768504264828,-542.51007756,0.0003589,10]
[402068663,1768504264838,-500.0,0.0003589,10]
[402068664,1768504264848,-662.72,0.0003589,10]
[402068665,1768504264859,-500.0,0.0003589,10]
[402068666,1768504264870,-500.0,0.0003589,10]
[402068667,1768504264880,-620.83,0.0003589,10]
[402068668,1768504264891,-500.0,0.0003589,10]
[402068669,1768504264902,-500.0,0.0003589,10]
[402068670,1768504264915,-500.0,0.0003589,10]
[402068671,1768504264926,-500.0,0.0003589,10]
[402068672,1768504264936,-801.06,0.0003589,10]
[402068673,1768504264947,-1191.37,0.0003589,10]
[402068674,1768504264957,-1365.61,0.0003589,10]
[402068675,1768504264967,-500.0,0.0003589,10]
[402068676,1768504264980,-595.5,0.0003589,10]
[402068677,1768504264991,-1074.02,0.0003589,10]
[402068678,1768504265002,-677.58,0.0003589,10]
[402068679,1768504265014,-3101.72,0.0003589,10]
[402068680,1768504265024,-688.27,0.0003589,10]
[402068681,1768504265038,-565.6,0.0003589,10]
[402068682,1768504265050,-500.0,0.0003589,10]
[402068683,1768504265061,-500.0,0.0003589,10]
[402068684,1768504265072,-500.0,0.0003589,10]
[402068685,1768504265082,-500.0,0.0003589,10]
[402068686,1768504265093,-500.0,0.0003589,10]